bitfinex/quotes_SOLUSD_20220130
["timestamp","ask_amount","ask_price","bid_price","bid_amount"]
[1643509273720,0.25,94.265,94.21,6.0]
[1643509273922,1.70001205,94.265,94.21,6.0]
[1643509274119,0.25,94.265,94.211,0.25]
[1643509274920,1.45001205,94.268,94.211,0.25]
[1643509274921,0.25,94.267,94.211,0.25]
[1643509275123,0.25,94.267,94.2,15.34]
[1643509275124,6.0,94.258,94.2,15.34]
[1643509275323,29.62169792,94.257,94.19,15.34]
[1643509275523,1.45001205,94.254,94.19,15.34]
[1643509275724,6.0,94.247,94.19,15.34]
[1643509275925,1.45001205,94.251,94.17,39.0879]
[1643509276125,0.25,94.246,94.171,0.25]
[1643509276625,0.25,94.246,94.18,6.0]
[1643509276826,0.25,94.246,94.181,0.25]
[1643509277226,0.25,94.246,94.18,6.0]
[1643509277227,0.25,94.247,94.18,6.0]
[1643509277627,6.0,94.238,94.18,6.0]
[1643509277828,6.0,94.233,94.17,15.34]
[1643509278031,6.0,94.227,94.17,15.34]
[1643509278428,0.25,94.226,94.17,15.34]
[1643509278629,1.45001205,94.234,94.18,6.0]
[1643509278928,38.28034157,94.237,94.181,0.25]
[1643509280228,0.25,94.236,94.181,0.25]
[1643509281230,0.25,94.236,94.181,2.18400945]
[1643509281529,0.25,94.236,94.191,6.0]
[1643509282331,0.25,94.236,94.181,0.25]
[1643509282532,0.25,94.236,94.18,6.0]
[1643509282731,0.25,94.236,94.181,0.25]
[1643509282931,38.28034157,94.237,94.181,0.25]
[1643509285032,38.28034157,94.237,94.19,6.0]
[1643509289834,1.45001205,94.249,94.191,0.25]
[1643509290033,1.45001205,94.257,94.2,6.0]
[1643509290234,1.45001205,94.26,94.201,0.25]
[1643509290437,1.45001205,94.261,94.201,107.98400945]
[1643509290632,1.45001205,94.267,94.202,50.25800945]
[1643509290836,0.25,94.26,94.203,0.25]
[1643509291033,0.25,94.26,94.212,111.8]
[1643509291235,0.25,94.26,94.22,15.34]
[1643509291436,0.3,94.312,94.221,105.8]
[1643509291437,1.45001205,94.273,94.221,105.8]
[1643509291735,1.45001205,94.286,94.23,6.0]
[1643509291934,1.45001205,94.291,94.24,31.251]
[1643509292134,46.30293484,94.309,94.251,105.8]
[1643509292135,1.45001205,94.293,94.251,105.8]
[1643509292334,1.45001205,94.307,94.252,0.25]
[1643509292535,1.45001205,94.311,94.262,105.8]
[1643509292734,1.45001205,94.314,94.27,15.34]
[1643509292936,1.45001205,94.315,94.272,6.0]
[1643509293141,1.45001205,94.317,94.28,6.0]
[1643509293342,1.45001205,94.348,94.29,15.34]
[1643509293540,1.45001205,94.348,94.3,6.0]
[1643509293837,1.45001205,94.352,94.301,0.25]
[1643509294037,1.45001205,94.353,94.301,6.25]
[1643509294444,0.25,94.352,94.31,6.0]
[1643509294641,0.25,94.352,94.311,6.0]
[1643509294840,0.25,94.354,94.311,6.25]
[1643509295038,0.55,94.355,94.311,6.0]
[1643509295239,0.55,94.355,94.3,15.34]
[1643509295539,1.45001205,94.353,94.3,15.34]
[1643509295739,1.45001205,94.347,94.3,15.34]
[1643509295942,0.55,94.355,94.3,15.34]
[1643509295943,1.45001205,94.346,94.3,15.34]
[1643509296341,0.3,94.355,94.301,0.25]
[1643509296539,0.3,94.355,94.3,15.34]
[1643509296739,0.3,94.355,94.301,0.25]
[1643509298369,0.55,94.355,94.301,106.05]
[1643509298569,0.55,94.355,94.311,6.0]
[1643509298767,0.25,94.367,94.312,0.25]
[1643509298969,0.25,94.354,94.312,0.25]
[1643509299166,0.25,94.367,94.312,0.25]
[1643509299569,6.0,94.364,94.312,0.25]
[1643509299770,0.25,94.363,94.312,0.25]
[1643509299968,0.25,94.363,94.302,0.25]
[1643509300169,0.25,94.363,94.311,6.0]
[1643509300368,0.25,94.363,94.312,0.25]
[1643509300569,0.3,94.365,94.312,0.25]
[1643509300970,0.3,94.365,94.311,6.0]
[1643509301669,0.3,94.365,94.312,0.25]
[1643509301869,0.55,94.365,94.312,0.25]
[1643509302070,0.3,94.365,94.312,0.25]
[1643509303368,0.55,94.365,94.312,0.25]
[1643509303771,0.55,94.365,94.301,22.5774]
[1643509304170,0.55,94.365,94.302,0.25]
[1643509305171,0.38221892,94.344,94.302,0.25]
[1643509305372,0.38221892,94.344,94.301,0.25]
[1643509306474,0.38221892,94.344,94.282,6.0]
[1643509306673,0.38221892,94.344,94.28,21.34]
[1643509306972,0.38221892,94.344,94.281,0.25]
[1643509309578,6.0,94.338,94.28,15.34]
[1643509309779,0.25,94.337,94.26,15.34]
[1643509309980,23.522,94.337,94.26,15.34]
[1643509310178,0.2,94.336,94.26,15.34]
[1643509310377,0.3,94.336,94.26,15.34]
[1643509310580,38.61292298,94.326,94.26,15.34]
[1643509310778,0.35,94.325,94.26,15.34]
[1643509310980,0.55,94.325,94.26,15.34]
[1643509312579,0.55,94.325,94.261,0.25]
[1643509313680,0.55,94.325,94.26,15.34]
[1643509313982,6.0,94.316,94.243,23.2768]
[1643509314182,6.0,94.316,94.244,0.25]
[1643509314380,0.25,94.315,94.244,0.25]
[1643509316485,0.55,94.325,94.244,0.25]
[1643509317682,6.0,94.316,94.244,0.25]
[1643509318082,0.25,94.315,94.244,0.25]
[1643509319086,6.0,94.316,94.244,0.25]
[1643509319283,0.25,94.315,94.244,0.25]
[1643509320389,1.70001205,94.315,94.244,0.25]
[1643509320990,0.25,94.315,94.244,0.25]
[1643509321189,0.25,94.315,94.245,1.93400945]
[1643509321391,0.25,94.315,94.246,0.25]
[1643509321791,1.70001205,94.315,94.246,0.25]
[1643509321990,1.45001205,94.314,94.246,0.25]
[1643509322396,0.25,94.313,94.26,15.34]
[1643509322795,0.25,94.313,94.261,0.25]
[1643509323395,0.25,94.321,94.261,0.25]
[1643509323794,0.25,94.322,94.261,0.25]
[1643509324297,0.25,94.323,94.261,0.25]
[1643509324699,1.70001205,94.323,94.261,0.25]
[1643509325699,1.70001205,94.323,94.27,6.0]
[1643509325900,1.70001205,94.323,94.271,0.25]
[1643509326300,0.25,94.323,94.271,0.25]
[1643509328502,1.70001205,94.323,94.271,0.25]
[1643509329304,1.45001205,94.322,94.271,0.25]
[1643509329704,0.25,94.321,94.271,0.25]
[1643509329906,0.25,94.321,94.27,21.34]
[1643509330905,0.25,94.322,94.27,21.34]
[1643509331307,0.25,94.322,94.27,15.34]
[1643509331905,1.45001205,94.321,94.27,15.34]
[1643509332109,1.45001205,94.322,94.271,0.25]
[1643509332305,0.25,94.32,94.271,0.25]
[1643509332505,1.75001205,94.325,94.271,0.25]
[1643509332709,1.45001205,94.322,94.271,0.25]
[1643509333409,1.45001205,94.32,94.271,0.25]
[1643509333610,1.45001205,94.32,94.27,15.34]
[1643509333910,1.45001205,94.319,94.27,15.34]
[1643509334108,1.45001205,94.32,94.27,15.34]
[1643509334908,0.25,94.319,94.27,15.34]
[1643509335918,1.70001205,94.319,94.27,15.34]
[1643509336117,1.45001205,94.317,94.27,15.34]
[1643509336317,0.25,94.316,94.27,15.34]
[1643509336518,29.47656804,94.311,94.27,15.34]
[1643509336719,0.3,94.31,94.27,15.34]
[1643509336917,0.55,94.31,94.27,15.34]
[1643509337118,0.3,94.31,94.271,0.25]
[1643509337919,0.3,94.31,94.27,15.34]
[1643509338340,1.75001205,94.31,94.27,15.34]
[1643509338540,1.75001205,94.31,94.28,6.0]
[1643509338739,0.3,94.31,94.28,6.0]
[1643509338940,0.3,94.31,94.271,0.25]
[1643509339341,0.55,94.31,94.271,0.25]
[1643509339742,0.3,94.31,94.271,0.25]
[1643509340143,1.45001205,94.32,94.271,30.6442]
[1643509340343,1.45001205,94.322,94.272,0.25]
[1643509340543,1.45001205,94.325,94.272,0.25]
[1643509340744,1.45001205,94.327,94.272,0.25]
[1643509340944,37.30172567,94.325,94.272,0.25]
[1643509341147,0.3,94.324,94.28,6.0]
[1643509341347,0.3,94.324,94.281,6.25]
[1643509344250,0.3,94.324,94.281,6.0]
[1643509344748,0.55,94.324,94.282,0.25]
[1643509346157,0.3,94.324,94.282,0.25]
[1643509346652,0.3,94.324,94.282,6.25]
[1643509346852,0.3,94.324,94.29,15.34]
[1643509347052,1.45001205,94.339,94.3,6.0]
[1643509347252,1.45001205,94.339,94.3,21.34]
[1643509347454,1.45001205,94.346,94.301,0.25]
[1643509347653,1.45001205,94.346,94.301,6.25]
[1643509347853,1.45001205,94.345,94.31,6.0]
[1643509348056,0.1,94.345,94.312,6.0]
[1643509348252,0.3,94.345,94.313,0.25]
[1643509348454,1.75001205,94.345,94.313,0.25]
[1643509348657,0.3,94.345,94.313,0.25]
[1643509348852,1.75001205,94.345,94.313,0.25]
[1643509349053,1.45001205,94.345,94.313,0.25]
[1643509349654,1.45001205,94.351,94.313,0.25]
[1643509349855,0.25,94.35,94.313,0.25]
[1643509351256,0.25,94.351,94.313,0.25]
[1643509351859,0.25,94.351,94.302,22.9109]
[1643509351860,1.70001205,94.351,94.303,0.25]
[1643509352357,1.45001205,94.355,94.303,0.25]
[1643509353359,1.75001205,94.356,94.303,0.25]
[1643509353759,1.45001205,94.355,94.303,106.05]
[1643509353962,1.75001205,94.356,94.312,6.0]
[1643509354161,0.3,94.356,94.303,0.25]
[1643509354564,0.3,94.356,94.312,6.0]
[1643509354763,1.45001205,94.372,94.313,0.25]
[1643509354964,6.0,94.358,94.313,25.1588]
[1643509355663,46.29876923,94.36,94.313,25.1588]
[1643509355864,0.3,94.359,94.313,25.1588]
[1643509356263,6.0,94.36,94.313,25.1588]
[1643509356471,6.0,94.363,94.313,25.1588]
[1643509356663,6.0,94.36,94.313,25.1588]
[1643509356892,0.3,94.362,94.313,25.1588]
[1643509357063,6.0,94.359,94.313,25.1588]
[1643509357964,6.0,94.36,94.313,25.1588]
[1643509359667,6.0,94.36,94.313,0.25]
[1643509359868,6.0,94.36,94.301,0.25]
[1643509361069,6.0,94.36,94.31,6.0]
[1643509361269,6.0,94.36,94.311,105.8]
[1643509361469,6.0,94.36,94.311,106.05]
[1643509361671,6.0,94.36,94.321,6.0]
[1643509361969,6.0,94.367,94.322,0.25]
[1643509362170,1.45001205,94.378,94.322,0.25]
[1643509362371,6.0,94.369,94.322,23.7088]
[1643509362669,36.65308132,94.367,94.322,23.7088]
[1643509362873,0.3,94.366,94.322,23.7088]
[1643509363069,6.0,94.357,94.322,23.7088]
[1643509363870,6.0,94.369,94.322,0.25]
[1643509364071,6.0,94.371,94.323,24.8019]
[1643509364271,6.0,94.371,94.324,0.25]
[1643509364492,6.0,94.37,94.324,0.25]
[1643509364693,6.3,94.37,94.324,0.25]
[1643509364893,6.0,94.364,94.324,0.25]
[1643509365495,6.0,94.37,94.324,0.25]
[1643509365893,6.0,94.374,94.324,0.25]
[1643509366092,6.0,94.373,94.324,0.25]
[1643509366493,6.0,94.373,94.333,6.0]
[1643509366696,6.0,94.373,94.31,15.34]
[1643509366697,0.25,94.372,94.31,15.34]
[1643509366893,0.25,94.372,94.311,0.25]
[1643509367092,6.25,94.372,94.311,0.25]
[1643509367292,6.55,94.372,94.311,0.25]
[1643509367493,6.25,94.372,94.311,0.25]
[1643509367694,6.0,94.371,94.311,0.25]
[1643509367895,0.25,94.37,94.32,6.0]
[1643509368196,22.26040533,94.368,94.32,6.0]
[1643509368397,0.3,94.367,94.321,0.25]
[1643509368796,6.0,94.369,94.321,0.25]
[1643509368995,6.0,94.372,94.321,6.25]
[1643509369696,34.21119532,94.38,94.321,6.25]
[1643509369997,0.55,94.379,94.321,6.25]
[1643509370800,0.55,94.379,94.322,0.25]
[1643509370998,2.00001205,94.379,94.322,0.25]
[1643509371499,1.45001205,94.378,94.322,0.25]
[1643509371697,1.45001205,94.378,94.32,15.34]
[1643509371698,0.25,94.377,94.32,15.34]
[1643509371898,1.70001205,94.377,94.32,15.34]
[1643509372103,1.45001205,94.376,94.32,15.34]
[1643509372300,1.70001205,94.375,94.28,191.81]
[1643509372510,33.8782957,94.365,94.301,6.0]
[1643509372700,0.3,94.364,94.301,6.0]
[1643509372902,6.0,94.358,94.31,6.0]
[1643509373102,0.55,94.364,94.31,6.0]
[1643509373306,0.55,94.364,94.311,0.25]
[1643509374903,6.0,94.355,94.311,0.25]
[1643509376605,6.0,94.349,94.311,0.25]
[1643509376807,6.3,94.349,94.311,0.25]
[1643509377007,6.0,94.34,94.311,0.25]
[1643509377206,6.0,94.339,94.311,0.25]
[1643509377407,0.3,94.339,94.311,0.25]
[1643509377607,6.0,94.34,94.311,0.25]
[1643509377907,0.3,94.349,94.311,0.25]
[1643509378311,0.3,94.349,94.301,0.25]
[1643509379912,0.55,94.349,94.301,0.25]
[1643509380915,6.0,94.34,94.301,0.25]
[1643509382412,0.25,94.339,94.3,15.34]
[1643509382610,0.25,94.339,94.292,23.565]
[1643509382611,6.25,94.339,94.292,23.565]
[1643509382812,6.55,94.339,94.292,23.565]
[1643509383012,6.0,94.333,94.292,23.565]
[1643509383212,33.8782957,94.332,94.292,23.565]
[1643509383417,6.0,94.329,94.292,23.565]
[1643509383613,0.3,94.331,94.292,23.565]
[1643509383813,0.3,94.331,94.293,0.25]
[1643509384014,0.3,94.331,94.293,6.25]
[1643509386214,0.3,94.331,94.293,0.25]
[1643509386415,0.3,94.331,94.284,0.25]
[1643509387616,0.3,94.331,94.283,23.7535]
[1643509387817,0.3,94.331,94.284,0.25]
[1643509389022,6.0,94.322,94.28,15.34]
[1643509389321,6.0,94.322,94.244,10.02508509]
[1643509389322,106.05,94.321,94.226,1.46844924]
[1643509389522,1.45001205,94.308,94.223,356.45929075]
[1643509389721,56.99939532,94.307,94.223,356.45929075]
[1643509389922,6.0,94.298,94.223,356.45929075]
[1643509390222,6.0,94.297,94.223,356.45929075]
[1643509390421,6.25,94.297,94.224,0.25]
[1643509390646,6.0,94.297,94.224,0.25]
[1643509390848,0.25,94.296,94.22,15.34]
[1643509391348,24.0517,94.296,94.22,15.34]
[1643509391548,6.0,94.286,94.22,15.34]
[1643509391749,33.8782957,94.285,94.22,15.34]
[1643509391950,34.1282957,94.285,94.22,15.34]
[1643509392150,34.1282957,94.285,94.221,0.25]
[1643509392552,6.0,94.275,94.221,0.25]
[1643509393055,6.0,94.275,94.22,15.34]
[1643509393056,6.25,94.274,94.22,15.34]
[1643509393852,6.25,94.274,94.201,23.951]
[1643509394058,6.25,94.274,94.2,15.34]
[1643509394254,6.25,94.274,94.201,0.25]
[1643509394658,6.25,94.274,94.21,6.0]
[1643509394855,6.25,94.274,94.211,0.25]
[1643509395255,24.2058,94.273,94.211,0.25]
[1643509395655,34.21119532,94.262,94.211,0.25]
[1643509395856,0.25,94.261,94.211,0.25]
[1643509396056,0.25,94.261,94.202,0.25]
[1643509399062,0.25,94.261,94.19,15.34]
[1643509399365,6.0,94.252,94.191,0.25]
[1643509399563,6.0,94.251,94.191,0.25]
[1643509399763,6.25,94.251,94.191,0.25]
[1643509399963,0.25,94.251,94.2,6.0]
[1643509400363,0.25,94.251,94.201,0.25]
[1643509400763,0.25,94.26,94.201,0.25]
[1643509400964,0.25,94.26,94.191,23.4789]
[1643509401165,0.25,94.26,94.201,6.0]
[1643509402365,0.25,94.26,94.202,0.25]
[1643509402567,0.25,94.26,94.192,0.25]
[1643509402765,6.0,94.251,94.192,0.25]
[1643509403264,0.25,94.25,94.192,0.25]
[1643509406872,23.7431,94.261,94.192,0.25]
[1643509407073,0.3,94.293,94.201,6.0]
[1643509407274,0.3,94.293,94.21,15.34]
[1643509407673,0.3,94.293,94.22,6.0]
[1643509407875,34.8573401,94.293,94.221,22.9025]
[1643509408074,0.3,94.292,94.231,6.0]
[1643509408273,0.3,94.292,94.232,0.25]
[1643509408675,0.3,94.292,94.232,2.17376492]
[1643509409078,0.3,94.292,94.233,1.92376492]
[1643509409276,0.55,94.292,94.234,0.25]
[1643509409498,0.3,94.292,94.234,0.25]
[1643509409698,0.3,94.292,94.243,6.0]
[1643509409902,0.3,94.292,94.244,0.25]
[1643509410100,0.3,94.306,94.245,6.0]
[1643509410298,0.3,94.306,94.246,0.25]
[1643509410599,0.55,94.306,94.246,0.25]
[1643509411001,35.37347726,94.305,94.246,0.25]
[1643509411300,0.3,94.304,94.246,0.25]
[1643509411503,0.3,94.317,94.255,6.0]
[1643509411704,0.25,94.317,94.255,6.0]
[1643509411902,0.25,94.317,94.26,6.0]
[1643509412307,0.25,94.317,94.261,0.25]
[1643509412603,0.25,94.317,94.261,6.25]
[1643509412803,0.55,94.336,94.261,6.25]
[1643509413905,0.3,94.336,94.27,15.34]
[1643509414104,1.45001205,94.354,94.28,6.0]
[1643509414307,1.45001205,94.368,94.29,15.34]
[1643509414506,1.45001205,94.371,94.3,6.0]
[1643509414706,1.45001205,94.369,94.3,21.34]
[1643509414907,36.69559131,94.368,94.301,6.25]
[1643509415105,0.3,94.367,94.31,6.0]
[1643509415306,0.3,94.367,94.311,0.25]
[1643509415509,0.3,94.367,94.311,6.25]
[1643509415710,6.0,94.358,94.3,15.34]
[1643509415909,0.25,94.357,94.301,0.25]
[1643509417408,0.3,94.366,94.291,23.8445]
[1643509417409,0.55,94.366,94.292,0.25]
[1643509417610,1.45001205,94.365,94.292,0.25]
[1643509417807,0.55,94.366,94.301,6.0]
[1643509417808,0.25,94.364,94.301,6.0]
[1643509418008,0.25,94.364,94.293,1.92307144]
[1643509418209,0.25,94.364,94.294,0.25]
[1643509418410,1.75001205,94.366,94.294,0.25]
[1643509418609,0.3,94.366,94.294,0.25]
[1643509419010,0.3,94.366,94.303,6.0]
[1643509419209,0.3,94.366,94.301,6.0]
[1643509419412,0.3,94.366,94.302,0.25]
[1643509419612,0.55,94.366,94.291,23.8445]
[1643509419812,0.55,94.366,94.296,0.25]
[1643509420612,6.0,94.357,94.296,0.25]
[1643509420812,0.25,94.356,94.292,0.25]
[1643509421013,6.0,94.356,94.301,6.0]
[1643509421412,6.0,94.356,94.302,0.25]
[1643509421613,6.0,94.357,94.302,0.25]
[1643509422614,0.3,94.366,94.302,0.25]
[1643509422817,6.0,94.357,94.302,0.25]
[1643509423015,6.0,94.347,94.292,0.25]
[1643509423215,31.39389971,94.346,94.292,0.25]
[1643509423415,0.3,94.345,94.291,0.25]
[1643509426017,0.3,94.345,94.29,15.34]
[1643509426421,6.0,94.336,94.271,23.5157]
[1643509426618,6.0,94.336,94.28,15.34]
[1643509427017,6.0,94.334,94.28,15.34]
[1643509427419,6.0,94.334,94.281,0.25]
[1643509427920,0.3,94.343,94.281,0.25]
[1643509428417,0.55,94.343,94.281,0.25]
[1643509429019,6.0,94.334,94.281,0.25]
[1643509429421,0.25,94.333,94.281,0.25]
[1643509429617,0.25,94.333,94.28,15.34]
[1643509430219,0.25,94.333,94.26,15.34]
[1643509430419,2.95669142,94.332,94.23,15.34]
[1643509430619,6.0,94.322,94.23,15.34]
[1643509430819,0.25,94.321,94.231,0.25]
[1643509431020,6.0,94.32,94.231,0.25]
[1643509431419,0.25,94.319,94.231,0.25]
[1643509431718,106.05,94.319,94.23,15.34]
[1643509431919,0.3,94.318,94.23,15.34]
[1643509432120,31.39389971,94.308,94.23,15.34]
[1643509432323,0.45,94.307,94.23,15.34]
[1643509432521,0.55,94.307,94.23,15.34]
[1643509432720,0.3,94.307,94.23,17.26307144]
[1643509433122,6.0,94.298,94.231,0.25]
[1643509434422,0.25,94.297,94.231,0.25]
[1643509436825,6.0,94.298,94.231,0.25]
[1643509437024,6.0,94.298,94.24,6.0]
[1643509437223,6.0,94.298,94.231,2.16716448]
[1643509437428,6.0,94.298,94.231,0.25]
[1643509437825,0.3,94.307,94.24,6.0]
[1643509438226,0.3,94.307,94.241,0.25]
[1643509438426,0.55,94.307,94.241,0.25]
[1643509439227,0.55,94.307,94.24,6.0]
[1643509441629,6.0,94.298,94.24,6.0]
[1643509441834,0.25,94.297,94.241,0.25]
[1643509442229,0.25,94.297,94.241,2.16716448]
[1643509442635,0.25,94.297,94.251,6.0]
[1643509443031,106.35,94.307,94.252,6.0]
[1643509443230,0.3,94.306,94.251,6.0]
[1643509443633,0.3,94.306,94.241,6.25]
[1643509443833,0.3,94.306,94.242,0.25]
[1643509445240,6.0,94.297,94.242,0.25]
[1643509445438,6.0,94.297,94.232,0.25]
[1643509445638,0.25,94.296,94.232,0.25]
[1643509445839,0.25,94.296,94.241,6.0]
[1643509446039,0.25,94.296,94.232,0.25]
[1643509446840,0.55,94.306,94.232,0.25]
[1643509448039,6.0,94.297,94.232,0.25]
[1643509448243,111.8,94.297,94.231,0.25]
[1643509448444,0.55,94.296,94.231,0.25]
[1643509449046,0.55,94.296,94.24,6.0]
[1643509449447,0.55,94.296,94.241,0.25]
[1643509450051,0.55,94.296,94.23,6.0]
[1643509450248,0.55,94.296,94.231,0.25]
[1643509450450,0.55,94.296,94.231,2.16716448]
[1643509450662,0.55,94.296,94.241,6.0]
[1643509451064,0.55,94.296,94.231,0.25]
[1643509451264,0.55,94.296,94.221,0.25]
[1643509451865,24.7273,94.295,94.221,0.25]
[1643509452067,0.3,94.294,94.221,0.25]
[1643509452266,0.55,94.294,94.221,0.25]
[1643509452768,0.55,94.294,94.222,1.91716448]
[1643509452970,0.55,94.294,94.23,6.0]
[1643509453167,0.3,94.307,94.232,6.0]
[1643509453369,0.3,94.307,94.233,24.4893]
[1643509453568,0.3,94.307,94.243,6.0]
[1643509453869,0.3,94.307,94.244,0.25]
[1643509454274,0.55,94.307,94.244,0.25]
[1643509454471,0.55,94.307,94.25,15.34]
[1643509454671,0.25,94.307,94.25,15.34]
[1643509454878,0.25,94.33,94.251,107.96716448]
[1643509455072,0.25,94.33,94.261,6.0]
[1643509455272,0.3,94.332,94.261,6.0]
[1643509455273,24.621,94.332,94.262,25.2224]
[1643509455474,43.55404353,94.331,94.262,25.2224]
[1643509455674,0.3,94.33,94.262,25.2224]
[1643509457172,0.3,94.332,94.263,1.91716448]
[1643509457373,0.3,94.332,94.272,6.0]
[1643509457675,6.0,94.339,94.281,105.8]
[1643509457872,6.0,94.339,94.29,15.34]
[1643509458074,6.0,94.341,94.3,6.0]
[1643509458272,6.0,94.341,94.301,0.25]
[1643509458772,6.0,94.347,94.301,0.25]
[1643509459373,6.0,94.347,94.3,15.34]
[1643509461075,6.0,94.347,94.301,0.25]
[1643509461876,6.0,94.347,94.3,15.34]
[1643509462576,6.0,94.347,94.301,2.16716448]
[1643509463075,6.0,94.347,94.302,1.91716448]
[1643509463283,6.0,94.347,94.303,0.25]
[1643509463675,6.0,94.347,94.304,1.91716448]
[1643509463975,6.0,94.347,94.3,15.34]
[1643509464778,0.25,94.346,94.3,15.34]
[1643509465178,0.25,94.346,94.301,0.25]
[1643509469581,0.25,94.346,94.3,15.34]
[1643509470182,0.25,94.346,94.301,0.25]
[1643509470781,0.25,94.346,94.3,15.34]
[1643509472186,6.0,94.347,94.301,0.25]
[1643509472387,0.25,94.346,94.301,0.25]
[1643509473589,0.3,94.356,94.301,0.25]
[1643509473590,0.55,94.356,94.301,0.25]
[1643509474290,0.3,94.356,94.301,0.25]
[1643509474497,0.3,94.356,94.31,6.0]
[1643509474692,0.3,94.356,94.31,21.34]
[1643509474891,0.3,94.356,94.312,6.0]
[1643509475090,6.0,94.368,94.32,6.0]
[1643509475290,6.0,94.368,94.321,0.25]
[1643509475490,6.0,94.367,94.321,0.25]
[1643509475691,0.1,94.367,94.321,0.25]
[1643509475891,6.0,94.368,94.321,0.25]
[1643509476189,6.0,94.364,94.321,0.25]
[1643509476590,6.0,94.364,94.32,21.14]
[1643509476790,0.25,94.363,94.32,21.14]
[1643509477013,0.25,94.363,94.32,15.34]
[1643509477613,6.0,94.364,94.32,15.34]
[1643509477813,6.0,94.364,94.321,0.25]
[1643509479916,6.0,94.364,94.33,6.0]
[1643509480317,6.0,94.364,94.331,0.25]
[1643509480715,1.45001205,94.389,94.331,0.25]
[1643509480917,0.25,94.388,94.331,0.25]
[1643509481118,0.25,94.388,94.331,6.25]
[1643509481319,1.45001205,94.387,94.34,6.0]
[1643509481518,0.25,94.388,94.341,6.0]
[1643509481721,0.25,94.386,94.341,6.25]
[1643509481918,0.25,94.388,94.342,6.0]
[1643509482320,0.25,94.388,94.343,0.25]
[1643509482924,0.35,94.39,94.343,0.25]
[1643509483725,0.25,94.39,94.343,24.9472]
[1643509483924,6.0,94.387,94.343,24.9472]
[1643509484124,6.0,94.394,94.343,24.9472]
[1643509484425,0.25,94.386,94.343,24.9472]
[1643509484625,1.45001205,94.398,94.343,24.9472]
[1643509484825,0.58203571,94.406,94.354,105.8]
[1643509484826,1.45001205,94.405,94.354,105.8]